bitfinex/quotes_ETHUSD_20240828
["timestamp","ask_amount","ask_price","bid_price","bid_amount"]
[1724857237720,4.385007,2508.6,2507.9,6.4656]
[1724857237870,3.98637,2508.6,2508.0,0.55]
[1724857238072,3.98648,2508.5,2508.1,0.70953212]
[1724857238376,3.98677,2508.3,2507.7,3.98758]
[1724857238614,2.2747,2508.7,2507.6,2.2762]
[1724857238615,3.98713,2508.1,2507.6,2.2762]
[1724857238771,3.98726,2508.0,2507.6,2.2762]
[1724857239322,3.98644,2508.6,2507.6,2.98235845]
[1724857239323,7.97273,2508.6,2507.6,2.98235845]
[1724857239536,3.98636,2508.6,2508.1,3.98707]
[1724857239685,3.98636,2508.6,2508.0,0.07973116]
[1724857239886,3.9868,2508.3,2507.7,4.06734344]
[1724857240093,3.9868,2508.3,2507.8,0.07973344]
[1724857240295,4.38548,2508.3,2507.6,2.2762]
[1724857240488,3.98709,2508.1,2507.6,2.2762]
[1724857240799,3.98749,2507.9,2507.3,6.27654]
[1724857241020,3.98749,2507.9,2507.4,3.98818]
[1724857241202,3.98756,2507.8,2507.3,6.675365]
[1724857241418,3.98756,2507.8,2507.3,4.387065]
[1724857241800,3.98783,2507.7,2507.4,19.45]
[1724857241998,3.98783,2507.7,2507.1,19.45]
[1724857242223,3.98821,2507.4,2507.0,11.344911]
[1724857242433,3.98821,2507.4,2507.0,9.5883]
[1724857242588,3.98821,2507.4,2507.0,7.3]
[1724857242795,3.98854,2507.2,2507.0,7.3]
[1724857242989,7.97652,2507.4,2507.0,7.3]
[1724857243293,3.98835,2507.3,2507.0,7.3]
[1724857243600,3.98851,2507.2,2507.0,7.3]
[1724857244026,3.98837,2507.3,2507.0,7.3]
[1724857244231,7.97714,2507.2,2507.0,7.3]
[1724857244525,3.98853,2507.2,2507.0,7.3]
[1724857245111,3.98853,2507.2,2506.8,19.45]
[1724857245423,3.98853,2507.2,2506.6,19.45]
[1724857245624,3.98853,2507.2,2506.6,22.523951]
[1724857245822,3.98867,2507.1,2506.7,0.60810681]
[1724857246224,3.98914,2506.8,2506.7,0.05810681]
[1724857246630,3.98914,2506.8,2506.5,7.3]
[1724857246931,3.98914,2506.8,2506.7,0.05229613]
[1724857246932,10.40244,2506.8,2506.7,0.05229613]
[1724857247086,7.453384,2506.8,2506.6,0.05822484]
[1724857247287,3.9894,2506.7,2506.1,4.04014]
[1724857247488,6.41314,2506.8,2506.7,0.05810681]
[1724857247711,3.98956,2506.6,2506.1,0.05]
[1724857247933,3.98956,2506.6,2506.1,4.04024]
[1724857248132,3.98956,2506.6,2506.1,0.05]
[1724857248441,3.98994,2506.3,2506.2,0.05282735]
[1724857248837,7.97988,2506.3,2506.2,0.05282735]
[1724857249653,3.9901,2506.2,2506.1,0.05]
[1724857250098,3.0,2506.5,2506.1,0.05]
[1724857250296,3.98967,2506.5,2506.1,0.05]
[1724857250556,3.98995,2506.3,2506.1,0.05]
[1724857250906,7.9802,2506.2,2506.1,0.05]
[1724857251100,3.9901,2506.2,2506.1,0.05]
[1724857252228,14.4325,2506.2,2506.1,0.05]
[1724857252442,17.4325,2506.2,2506.1,0.05]
[1724857253497,13.4424,2506.2,2506.1,0.05]
[1724857253702,3.9894,2506.7,2506.1,0.05]
[1724857253904,2.4622,2506.8,2506.1,0.05]
[1724857254103,3.98874,2507.1,2506.5,3.9895]
[1724857254299,3.98885,2507.0,2506.6,0.39895]
[1724857254515,3.98885,2507.0,2506.7,0.55]
[1724857254742,3.98885,2507.0,2506.5,4.53953]
[1724857254947,6.37773,2507.2,2506.5,0.62978119]
[1724857255105,3.98885,2507.0,2506.5,0.62978119]
[1724857255446,3.98885,2507.0,2506.5,0.55]
[1724857255824,3.98885,2507.0,2506.5,4.61932118]
[1724857256253,3.98885,2507.0,2506.5,0.62978118]
[1724857256442,7.97776,2507.0,2506.5,0.62978118]
[1724857256827,3.98885,2507.0,2506.5,4.53962]
[1724857257144,3.98854,2507.2,2506.5,4.61938463]
[1724857257341,3.0,2507.1,2506.6,3.98939]
[1724857257671,3.0,2507.1,2506.7,0.55]
[1724857257672,3.98886,2507.0,2506.7,0.55]
[1724857257978,3.998854,2507.1,2506.2,2.962509]
[1724857258281,3.98957,2506.6,2506.1,4.04015]
[1724857258563,3.98963,2506.5,2506.1,0.05]
[1724857259276,3.98994,2506.3,2506.1,0.05]
[1724857260586,3.9901,2506.2,2506.1,0.05]
[1724857261366,3.98998,2506.3,2506.1,0.05]
[1724857261571,7.9802,2506.2,2506.1,0.05]
[1724857261777,3.99037,2506.1,2505.6,0.07980889]
[1724857261946,3.99079,2505.8,2505.3,3.99143]
[1724857262147,3.99079,2505.8,2505.4,20.0]
[1724857262675,3.99051,2506.0,2505.4,20.0]
[1724857262848,3.99021,2506.2,2505.5,0.07981693]
[1724857263043,3.9898,2506.4,2505.9,3.99049]
[1724857263245,3.98922,2506.8,2506.0,4.86823739]
[1724857263246,3.98925,2506.8,2506.0,4.86823739]
[1724857263503,3.98949,2506.6,2506.1,0.55]
[1724857263632,3.98905,2506.9,2506.1,0.55]
[1724857263834,3.98981,2506.4,2506.2,0.05589843]
[1724857264034,3.98957,2506.6,2506.2,0.05589843]
[1724857264260,3.98932,2506.7,2506.2,4.04597843]
[1724857264444,3.98925,2506.8,2506.2,0.05589843]
[1724857264445,3.98994,2506.3,2506.2,0.05589843]
[1724857264834,7.97988,2506.3,2506.2,0.05589843]
[1724857265035,9.176837,2506.3,2506.2,0.05589843]
[1724857265639,16.166777,2506.3,2506.2,0.05589843]
[1724857266131,16.166777,2506.3,2505.5,19.45]
[1724857266132,3.99074,2505.8,2505.5,19.45]
[1724857266329,3.99074,2505.8,2505.3,7.3]
[1724857266531,3.99106,2505.6,2505.3,7.3]
[1724857266757,3.99074,2505.8,2505.3,11.29145]
[1724857266956,3.99074,2505.8,2505.3,14.764803]
[1724857267228,3.99074,2505.8,2505.3,7.3]
[1724857267336,3.99074,2505.8,2505.3,11.29145]
[1724857267540,3.99074,2505.8,2505.3,7.3]
[1724857267851,3.99074,2505.8,2505.4,0.55]
[1724857268049,7.98162,2505.8,2505.4,0.55]
[1724857268363,7.98162,2505.8,2504.9,7.3]
[1724857268364,3.99179,2505.2,2504.9,7.3]
[1724857268569,3.99137,2505.4,2504.8,0.07983863]
[1724857268570,3.99159,2505.3,2504.8,0.07983863]
[1724857268749,3.99144,2505.4,2504.8,0.07983863]
[1724857268952,3.99183,2505.2,2504.5,3.9927]
[1724857269166,3.99183,2505.2,2504.5,0.07984589]
[1724857269360,3.99183,2505.2,2504.4,23.44287]
[1724857269361,3.99219,2504.9,2504.4,19.45]
[1724857269876,3.99236,2504.8,2504.4,19.45]
[1724857270079,3.99256,2504.7,2504.4,19.45]
[1724857270240,3.99236,2504.8,2504.4,19.45]
[1724857271189,4.790842,2504.8,2504.4,19.45]
[1724857271479,3.99267,2504.6,2504.5,0.55]
[1724857271680,3.99251,2504.7,2503.7,2.498]
[1724857271886,3.99324,2504.3,2503.7,2.498]
[1724857272545,3.99338,2504.2,2503.7,2.498]
[1724857272745,3.99338,2504.2,2503.6,4.1167229]
[1724857272746,3.99363,2504.0,2503.6,0.1226329]
[1724857273050,7.98738,2504.0,2503.6,0.1226329]
[1724857273249,3.99363,2504.0,2503.6,0.1226329]
[1724857273551,7.98675,2504.2,2503.6,0.1226329]
[1724857273880,3.99304,2504.4,2503.7,4.07394242]
[1724857274046,3.0,2504.3,2503.8,3.9939]
[1724857274250,3.0,2504.3,2503.9,0.07986723]
[1724857274811,3.99304,2504.4,2504.0,0.55]
[1724857274984,4.791615,2504.4,2504.0,0.55]
[1724857275335,4.791615,2504.4,2503.7,3.99397]
[1724857275336,3.99354,2504.1,2503.6,0.1226329]
[1724857275621,3.99291,2504.5,2503.6,4.1167729]
[1724857275622,3.99327,2504.3,2503.6,4.1167729]
[1724857275923,3.99301,2504.4,2503.8,3.99392]
[1724857276135,3.0,2504.8,2504.0,2.4559]
[1724857276286,3.0,2504.8,2504.1,0.07985579]
[1724857276494,3.99193,2505.1,2504.2,4.07302579]
[1724857276736,0.3,2505.3,2504.8,3.9923]
[1724857276737,3.99161,2505.3,2504.8,3.9923]
[1724857277024,3.99186,2505.1,2504.9,0.55]
[1724857277187,3.99218,2504.9,2504.5,26.75]
[1724857277385,3.99218,2504.9,2504.6,0.55]
[1724857277597,3.99186,2505.1,2504.6,0.55]
[1724857277815,7.98384,2505.1,2504.6,0.62984662]
[1724857278031,7.98383,2505.1,2504.6,0.62984662]
[1724857278236,6.2848,2505.6,2504.8,3.99232]
[1724857278237,3.9914,2505.4,2504.8,3.99232]
[1724857278401,3.9919,2505.1,2504.9,0.55]
[1724857278603,3.9919,2505.1,2504.9,0.59080991]
[1724857278805,3.9919,2505.1,2504.9,0.04080991]
[1724857279005,3.99161,2505.3,2504.7,0.62984075]
[1724857279209,3.99161,2505.3,2504.7,4.14404599]
[1724857279395,3.99161,2505.3,2504.8,0.04088083]
[1724857279591,3.99216,2505.0,2504.8,0.04088083]
[1724857279819,3.99205,2505.0,2504.5,26.75]
[1724857280019,3.99152,2505.4,2504.9,0.04080991]
[1724857280329,3.99183,2505.2,2505.0,0.04073899]
[1724857280532,3.99183,2505.2,2504.6,3.93716892]
[1724857280533,3.99182,2505.2,2504.6,23.38716892]
[1724857280709,3.99195,2505.1,2504.6,20.07984892]
[1724857280907,3.99182,2505.2,2504.6,20.07984892]
[1724857281233,3.99187,2505.1,2504.6,23.45013381]
[1724857281613,3.99156,2505.3,2504.7,3.99238]
[1724857281922,3.99173,2505.2,2504.7,3.55409212]
[1724857282107,7.98354,2505.2,2504.8,0.55]
[1724857282313,3.99186,2505.1,2504.8,0.55]
[1724857282527,3.9921,2505.0,2504.8,0.55]
[1724857282690,3.9921,2505.0,2504.7,0.55]
[1724857283241,3.99217,2504.9,2504.6,19.45]
[1724857283932,3.9921,2505.0,2504.6,19.45]
[1724857284144,7.98422,2505.0,2504.6,19.45]
[1724857284432,3.99212,2505.0,2504.6,19.45]
[1724857284601,3.99226,2504.9,2504.7,0.55]
[1724857284808,3.99182,2505.2,2504.7,0.55]
[1724857285025,3.0,2505.3,2504.6,19.45]
[1724857285026,2.2703,2504.9,2504.6,19.45]
[1724857285205,3.99249,2504.7,2504.6,19.45]
[1724857285407,3.99249,2504.7,2504.2,19.45]
[1724857285608,2.2703,2504.9,2504.2,19.45]
[1724857285838,3.99313,2504.3,2504.2,19.45]
[1724857286053,3.99303,2504.4,2504.2,19.45]
[1724857286274,3.99271,2504.6,2503.9,19.45]
[1724857286427,3.99353,2504.1,2503.9,19.45]
[1724857286921,3.99354,2504.1,2503.9,19.45]
[1724857287270,7.98722,2504.0,2503.9,19.45]
[1724857287408,1.198059,2504.0,2503.6,0.1226329]
[1724857287612,3.99408,2503.7,2503.6,0.1226329]
[1724857288114,7.98816,2503.7,2503.6,0.1226329]
[1724857289006,14.23504,2503.7,2503.6,0.1226329]
[1724857289214,17.23504,2503.7,2503.6,0.1226329]
[1724857289413,19.357929,2503.7,2503.6,0.1226329]
[1724857289623,15.363849,2503.7,2503.6,0.1226329]
[1724857289867,0.43937308,2504.6,2503.6,0.1226329]
[1724857289868,3.99388,2503.9,2503.6,0.1226329]
[1724857290069,3.99394,2503.8,2503.6,0.16454255]
[1724857290365,3.99373,2504.0,2503.6,0.16454255]
[1724857290366,3.99367,2504.0,2503.6,0.16454255]
[1724857290572,3.99382,2503.9,2503.7,0.55]
[1724857290921,3.99346,2504.1,2503.8,0.04176768]
[1724857291172,3.99286,2504.5,2503.9,3.99376]
[1724857291377,3.99222,2504.9,2504.1,3.99334]
[1724857291557,3.99039,2506.1,2504.0,1.03722373]
[1724857291558,3.99191,2505.1,2504.3,3.99308]
[1724857291741,3.99202,2505.0,2504.4,0.62984706]
[1724857292071,3.99191,2505.1,2504.4,0.67118897]
[1724857292267,3.99218,2504.9,2504.4,1.13348168]
[1724857293664,3.99191,2505.1,2504.4,1.13348168]
[1724857293665,3.99268,2504.6,2504.4,0.04134191]
[1724857293825,3.99268,2504.6,2504.1,0.33667204]
[1724857294019,3.99237,2504.8,2504.2,0.04148381]
[1724857294567,3.99206,2505.0,2504.3,0.07985643]
[1724857294724,3.0,2505.1,2504.2,0.04148381]
[1724857294725,2.4417,2504.9,2504.2,0.04148381]
[1724857294920,3.9929,2504.5,2503.9,3.99374]
[1724857295162,3.99256,2504.7,2504.0,0.07986345]
[1724857295366,3.99256,2504.7,2504.0,2.57066345]
[1724857295579,3.99256,2504.7,2504.1,4.25046635]
[1724857295753,3.99222,2504.9,2504.2,0.07985894]
[1724857295958,3.99222,2504.9,2504.2,4.07299894]
[1724857296275,2.84810635,2505.7,2504.6,3.99263]
[1724857296573,2.84810635,2505.7,2504.7,1.02909645]
[1724857296746,3.99175,2505.2,2504.7,0.62983666]
[1724857296941,2.84810635,2505.7,2504.2,3.99317]
[1724857297143,3.99221,2504.9,2504.4,3.99296]
[1724857297489,3.9913,2505.5,2504.4,3.99296]
[1724857297490,3.99153,2505.3,2504.6,10.38282]
[1724857297786,3.99126,2505.5,2504.8,3.99218]
[1724857297929,2.4302,2506.0,2504.9,0.62983347]
[1724857298128,3.99101,2505.7,2505.1,3.99174]
[1724857298361,3.99064,2505.9,2505.2,0.55]
[1724857298362,0.24302,2505.9,2505.2,0.55]
[1724857298578,2.4302,2506.4,2505.3,0.07981972]
[1724857298748,2.4302,2506.4,2505.2,0.55]
[1724857298749,3.99121,2505.5,2505.4,0.55]
[1724857298953,3.99047,2506.0,2505.2,0.55]
[1724857299153,0.49705447,2506.3,2505.1,0.55]
[1724857299154,3.99096,2505.7,2505.1,0.55]
[1724857299386,3.99124,2505.5,2505.0,0.55]
[1724857299590,3.99124,2505.5,2504.9,0.55]
[1724857299762,3.99096,2505.7,2505.1,3.99175]
[1724857299948,3.99096,2505.7,2505.2,0.55]
[1724857300797,3.99064,2505.9,2505.4,3.9913]
[1724857300999,4.632026,2506.3,2505.6,3.99105]
[1724857301289,7.97946,2506.5,2505.8,3.99074]
[1724857301492,6.33755,2506.8,2505.9,0.55]
[1724857301797,3.98947,2506.6,2506.0,0.07980408]
[1724857301950,3.98923,2506.8,2506.1,4.54011]
[1724857302151,3.98892,2507.0,2506.1,4.54011]
[1724857302152,3.98892,2507.0,2506.2,0.07978726]
[1724857302351,3.98892,2507.0,2506.3,4.53978]
[1724857302546,7.9779,2507.0,2506.4,0.07978345]
[1724857302868,3.98892,2507.0,2506.5,0.55]
[1724857303063,3.98892,2507.0,2506.0,3.99041]
[1724857303064,0.797751,2507.0,2506.0,3.99041]
[1724857303261,3.98959,2506.6,2506.1,0.55]
[1724857303786,3.98959,2506.6,2506.0,0.55]
[1724857303787,3.98951,2506.6,2506.0,0.55]
[1724857304188,3.98978,2506.4,2506.0,0.55]
[1724857304594,3.98951,2506.6,2506.0,0.55]
[1724857304767,6.98919,2506.8,2506.0,5.230873]
[1724857304974,3.98947,2506.6,2506.0,0.55]
[1724857305171,3.98947,2506.6,2506.0,4.54042]
[1724857305764,7.97906,2506.6,2506.1,0.60731998]
[1724857305966,3.9891,2506.9,2506.2,4.54006]
[1724857306166,3.98891,2507.0,2506.2,4.54006]
[1724857306364,3.98917,2506.8,2506.2,8.53004]
[1724857306605,3.98917,2506.8,2506.2,8.52997]
[1724857306777,3.98948,2506.6,2505.9,2.3649]
[1724857307103,3.98948,2506.6,2505.9,10.98149]
[1724857307284,3.98948,2506.6,2506.0,3.99031]
[1724857307805,3.9898,2506.4,2505.9,6.35536]
[1724857307991,3.99014,2506.2,2506.0,19.45]
[1724857308168,3.98984,2506.4,2506.0,19.45]
[1724857308363,7.97911,2506.6,2506.1,0.04742596]
[1724857308573,8.72932841,2506.6,2506.1,0.04742596]
[1724857308779,3.98965,2506.5,2506.1,0.04742596]
[1724857308980,3.98953,2506.6,2506.1,4.03762596]
[1724857309182,3.98891,2507.0,2506.2,2.2745]
[1724857309399,4.47440737,2508.1,2506.5,3.98953]
[1724857309400,3.98789,2507.6,2506.5,3.98953]
[1724857309582,0.48737074,2508.0,2506.7,6.26366]
[1724857309798,3.98773,2507.7,2506.7,2.2745]
[1724857310112,3.98833,2507.4,2506.8,0.68084225]
[1724857310294,3.98833,2507.4,2506.8,4.96543648]
[1724857310608,3.98788,2507.6,2506.8,0.60106131]
[1724857310609,3.98878,2507.1,2506.8,0.60106131]
[1724857310779,3.9888,2507.1,2506.8,0.60106131]
[1724857310980,3.98868,2507.1,2506.8,0.60106131]
[1724857311182,3.98899,2506.9,2506.8,0.60106131]
[1724857311400,3.98822,2507.4,2506.8,0.60106131]
[1724857311401,3.98779,2507.7,2506.8,0.60106131]
[1724857311566,7.9775,2507.1,2506.8,0.60106131]
[1724857311771,3.9887,2507.1,2506.8,0.60106131]
[1724857311967,7.97798,2506.9,2506.8,0.05106131]
[1724857312414,3.98951,2506.6,2506.2,2.4295]
[1724857312586,3.98927,2506.8,2506.2,2.4295]
[1724857312783,3.98927,2506.8,2506.3,4.0414742]
[1724857312999,3.98931,2506.7,2506.3,0.0515442]
[1724857313320,3.98925,2506.8,2506.2,2.4295]
[1724857313483,3.98925,2506.8,2506.4,0.05144761]
[1724857313696,3.98932,2506.7,2506.5,0.55]
[1724857313994,3.98958,2506.6,2506.5,0.05648612]
[1724857314209,7.97916,2506.6,2506.5,0.05648612]
[1724857314510,3.99003,2506.3,2505.8,2.3389]
[1724857314820,7.97941,2506.5,2505.9,3.9905]
[1724857315320,3.98969,2506.5,2505.8,6.32962]
[1724857315611,5.087631,2506.5,2505.8,10.32034]
[1724857315820,3.98979,2506.4,2505.9,0.55]
[1724857315966,9.077401,2506.5,2505.9,4.54056]
[1724857316188,3.98969,2506.5,2505.9,4.54056]
[1724857316487,3.98947,2506.6,2506.1,3.99013]
[1724857316682,0.3,2506.9,2506.2,4.53999]
[1724857316683,3.98908,2506.9,2506.2,4.53999]
[1724857316919,3.98947,2506.6,2506.2,0.55]
[1724857317129,3.98947,2506.6,2506.1,0.55]
[1724857317633,3.98948,2506.6,2506.0,0.07979088]
[1724857317924,3.9898,2506.4,2505.8,10.32019]
[1724857318132,3.98955,2506.6,2506.0,3.99039]
[1724857318489,3.98955,2506.6,2506.0,7.98078]
[1724857318687,3.98955,2506.6,2506.0,3.99039]
[1724857318889,0.398955,2506.6,2505.8,2.3389]
[1724857319220,3.99053,2506.0,2505.5,2.4568]
[1724857319421,3.99053,2506.0,2505.6,19.45]
[1724857319593,2.392,2506.6,2505.6,19.45]
[1724857319594,3.99063,2505.9,2505.6,19.45]
[1724857319945,6.38153,2506.6,2505.6,19.45]
[1724857319946,7.9818,2505.7,2505.6,19.45]
[1724857320404,7.9818,2505.7,2505.0,3.99188]
[1724857320405,3.99199,2505.1,2504.9,19.45]
[1724857320614,3.99228,2504.9,2504.4,9.7568]
[1724857320935,2.392,2505.3,2504.4,9.7568]
[1724857320936,3.99266,2504.6,2504.4,2.4568]
[1724857321143,3.99258,2504.7,2504.1,26.75]
[1724857321293,3.99258,2504.7,2504.2,19.45]
[1724857321632,3.99258,2504.7,2504.2,23.46493556]
[1724857321840,3.0,2505.2,2504.2,23.46493556]
[1724857321841,3.99196,2505.1,2504.5,3.9928]
[1724857322049,3.99207,2505.0,2504.6,0.39928]
[1724857322541,3.99229,2504.9,2504.5,2.4568]
[1724857322842,3.99234,2504.8,2504.2,2.4568]
[1724857323143,3.99205,2505.0,2504.3,5.767446]
[1724857323306,3.99234,2504.8,2504.3,1.82231764]
[1724857323963,3.99234,2504.8,2504.3,5.81543764]
[1724857324265,3.99259,2504.7,2504.3,1.82231764]
[1724857324430,3.99234,2504.8,2504.3,0.04797164]
[1724857324630,3.99266,2504.6,2504.3,0.04797164]
[1724857324870,7.98594,2504.4,2504.3,0.04797164]
[1724857325372,3.99325,2504.3,2503.6,2.5989329]
[1724857325572,3.99356,2504.1,2503.6,2.5989329]
[1724857325867,3.99392,2503.8,2503.7,0.04157477]
[1724857326081,7.98784,2503.8,2503.7,0.04157477]
[1724857326459,7.98816,2503.7,2503.6,0.1226329]
[1724857326658,9.186324,2503.7,2503.6,0.1226329]
[1724857326968,11.449324,2503.7,2503.6,0.1226329]
[1724857327170,18.443404,2503.7,2503.6,0.1226329]
[1724857327537,22.437484,2503.7,2503.6,0.1226329]
[1724857327840,22.437484,2503.7,2503.6,2.9e-06]
[1724857327841,26.431564,2503.7,2503.6,2.9e-06]
[1724857328169,26.431564,2503.7,2501.7,3.99714]
[1724857328170,3.99624,2502.4,2501.7,3.99714]
[1724857328371,3.99589,2502.6,2502.1,3.99663]
[1724857328577,3.9956,2502.8,2502.2,0.07992159]
[1724857328785,3.99602,2502.5,2501.9,3.99684]
[1724857328968,3.9958,2502.7,2501.9,3.99684]
[1724857329278,3.99621,2502.4,2501.9,0.40767683]
[1724857329433,3.99621,2502.4,2501.7,4.07713534]
[1724857329635,3.99621,2502.4,2501.8,0.07993389]
[1724857329827,3.99621,2502.4,2501.8,0.07993327]
[1724857330032,3.99659,2502.2,2501.5,6.41302]
[1724857330567,3.99694,2502.0,2501.5,2.4155]
[1724857330748,3.99694,2502.0,2501.1,4.1207929]
[1724857330952,4.795432,2502.4,2501.1,0.1226329]
[1724857330953,2.788294,2501.9,2501.1,0.1226329]
[1724857331184,2.3886,2501.9,2501.1,0.1226329]
[1724857331491,3.99808,2501.2,2501.1,0.1226329]
[1724857331652,7.9957,2501.4,2501.1,0.1226329]
[1724857331840,3.99805,2501.3,2501.1,0.1226329]
[1724857332234,3.99781,2501.4,2501.1,0.1226329]
[1724857332434,3.99808,2501.2,2501.1,0.1226329]
[1724857332647,3.99805,2501.3,2501.1,0.1226329]
[1724857333088,3.99802,2501.3,2501.1,0.1226329]
[1724857333685,6.99766,2501.5,2501.1,0.1226329]
[1724857333891,3.99802,2501.3,2501.1,0.1226329]
[1724857334484,7.99616,2501.2,2501.1,0.1226329]
[1724857334634,10.99616,2501.2,2501.1,0.1226329]
[1724857334842,14.99424,2501.2,2501.1,0.1226329]
[1724857335395,4.00027,2499.9,2499.2,4.00119]
[1724857335583,4.00027,2499.9,2498.6,0.1226329]
[1724857335584,2.2917,2500.3,2498.9,2.3377]
[1724857335802,3.99984,2500.1,2499.4,4.00092]
[1724857335996,4.0001,2500.0,2499.3,4.00101]
[1724857336287,4.00028,2499.9,2499.4,0.045064]
[1724857336517,4.00055,2499.7,2498.6,4.1248029]
[1724857336688,4.00189,2498.9,2498.6,0.1226329]
[1724857337012,8.00416,2498.7,2498.6,0.1226329]
[1724857337616,4.00077,2499.6,2498.6,0.1226329]
[1724857337828,7.00085,2499.5,2498.8,4.00178]
[1724857338024,7.00085,2499.5,2498.6,0.1226329]
[1724857338025,9.34655,2499.7,2499.1,4.00143]
[1724857338194,6.47548,2499.9,2499.1,4.00143]
[1724857338526,6.47548,2499.9,2499.2,0.44534947]
[1724857338685,6.47548,2499.9,2498.6,0.1226329]
[1724857338686,2.4753,2499.9,2498.6,0.1226329]
[1724857338891,0.54345071,2500.2,2498.6,0.1226329]
[1724857338892,4.00011,2500.0,2499.3,4.00102]
[1724857339139,8.00023,2500.0,2499.4,0.400102]
[1724857339304,3.99973,2500.2,2499.5,4.55074]
[1724857339500,0.05,2501.8,2499.5,4.55074]
[1724857339501,3.99909,2500.6,2499.9,4.00004]
[1724857339815,3.99904,2500.6,2500.0,0.55]
[1724857339988,3.99904,2500.6,2500.0,0.59463673]
[1724857340412,3.99951,2500.4,2500.0,0.04463673]
[1724857340609,7.99901,2500.4,2500.0,0.04463673]
[1724857340945,7.99901,2500.4,2499.1,3.0]
[1724857340946,3.99968,2500.2,2500.1,0.04456553]
[1724857341240,4.00012,2500.0,2499.2,4.55032]
[1724857341436,0.799901,2500.4,2500.1,0.04456553]
[1724857341437,7.99936,2500.2,2500.1,0.04456553]
[1724857341587,3.99988,2500.1,2499.3,0.55]
[1724857341792,4.00042,2499.8,2499.0,4.00145]
[1724857342093,3.99975,2500.2,2499.4,4.00095]
[1724857342430,4.00033,2499.8,2499.2,4.00117]
[1724857342640,4.00064,2499.6,2499.5,0.04499277]
[1724857342787,4.00033,2499.8,2499.1,4.40606077]
[1724857343131,4.0009,2499.5,2498.8,4.00178]
[1724857343432,8.00224,2499.3,2499.2,0.04616864]
[1724857343648,4.00208,2498.7,2498.6,0.1226329]
[1724857343809,3.54345071,2499.4,2498.6,0.1226329]
[1724857343810,4.00162,2499.0,2498.6,0.1226329]
[1724857344148,4.0015,2499.1,2498.6,0.1226329]
[1724857344291,8.00271,2499.2,2498.7,0.04652491]
[1724857344494,4.00161,2499.0,2498.7,0.04652491]
[1724857344688,3.0,2499.1,2498.8,4.00178]
[1724857345044,4.00105,2499.4,2498.9,0.04638239]
[1724857345237,4.00065,2499.6,2498.9,4.12805651]
[1724857345442,4.00039,2499.8,2498.9,0.53922216]
[1724857345598,4.00039,2499.8,2499.3,4.00108]
[1724857345798,4.00064,2499.6,2499.0,0.55]
[1724857346033,4.0008,2499.5,2499.4,0.04602617]
[1724857346196,4.0008,2499.5,2498.8,0.96246129]
[1724857346424,4.24216,2499.9,2499.4,0.04602617]
[1724857346425,0.24188,2499.9,2499.4,0.04602617]
[1724857346728,3.99959,2500.3,2499.6,4.00063]
[1724857346948,4.23852,2500.3,2499.7,0.55]
[1724857347166,7.99924,2500.3,2499.7,4.59914693]
[1724857347349,3.99959,2500.3,2499.7,0.59867693]
[1724857347672,3.99959,2500.3,2499.7,4.59913693]
[1724857347875,3.99959,2500.3,2499.7,0.59867693]
[1724857348074,3.99995,2500.1,2499.7,0.04867693]
[1724857348226,3.9998,2500.2,2499.7,0.04867693]
[1724857348425,3.9998,2500.2,2499.3,4.08103358]
[1724857348426,3.0,2500.5,2499.3,4.00102]
[1724857348666,8.00051,2499.9,2499.8,0.048243]
[1724857348864,0.54345071,2500.3,2498.5,4.00236]
[1724857348865,0.54345071,2500.3,2498.5,4.00239]
[1724857349036,3.99976,2500.2,2499.3,4.00101]
[1724857349241,3.99976,2500.2,2499.5,4.0007]
[1724857349531,3.0,2500.1,2499.7,4.00036]
[1724857349730,3.0,2500.3,2499.7,4.00036]
[1724857349981,6.99966,2500.3,2499.8,0.04833531]
[1724857350156,3.10918573,2501.0,2499.8,0.48487668]
[1724857350479,0.38867011,2501.4,2500.3,3.99945]
[1724857350480,2.2907,2501.4,2500.3,3.99945]
[1724857350687,0.41846882,2501.4,2501.0,3.99837]
[1724857350825,0.41846882,2501.4,2500.8,3.99871]
[1724857350826,3.99717,2501.8,2500.6,3.99898]
[1724857350827,0.54345071,2501.8,2500.6,3.99898]
[1724857351027,3.99802,2501.3,2501.1,0.04733098]
[1724857351269,7.99607,2501.3,2500.6,4.54893]
[1724857351451,7.99607,2501.3,2501.2,0.04698956]
[1724857351664,3.99865,2500.9,2500.3,3.99948]
[1724857351966,0.399865,2500.9,2500.4,0.55]
[1724857352175,3.99866,2500.9,2500.4,0.55]
[1724857352325,3.99919,2500.6,2500.4,0.55]
[1724857352526,3.99919,2500.6,2500.2,0.55]
[1724857352527,3.99915,2500.6,2500.2,0.55]
[1724857352731,3.99877,2500.8,2500.1,3.99972]
[1724857353036,3.99911,2500.6,2500.0,0.55]
[1724857353373,3.99911,2500.6,2500.1,0.04775252]
[1724857353672,3.99873,2500.8,2500.1,3.99982]
[1724857353828,3.0,2500.7,2500.2,0.04768134]
[1724857354027,3.0,2500.7,2500.2,0.1276683]
[1724857354341,3.99848,2501.0,2500.3,3.99939]
[1724857354342,3.99865,2500.9,2500.3,3.99939]
[1724857354524,3.0,2500.8,2500.4,0.55]
[1724857354725,3.0,2500.8,2500.4,0.59753898]
[1724857355150,10.99757,2500.8,2500.4,0.59753898]
[1724857355334,0.631268,2501.0,2500.4,4.59678898]
[1724857355527,6.31234,2501.2,2500.5,0.07997885]
[1724857355726,4.41573324,2501.7,2500.5,0.07997885]
[1724857355727,3.99756,2501.6,2501.0,3.99836]
[1724857355972,3.99756,2501.6,2501.1,0.55]
[1724857356126,0.41844324,2501.7,2501.1,1.53166652]